Cogmind - Beta 16 @@@ ROGUE MODE // 2025.12.14 @ 00:31:00 Player: Parkagirl Result: Destroyed by Y-45 Defender with Heavy Assault Rifle Performance ------------- Evolutions (2) 1000 Regions Visited (5) 1000 Robots Destroyed (45) 225 Value Destroyed (1451) 1451 Prototype IDs (6) 120 Alien Tech Used (0) 0 Bonus (0) 0 TOTAL SCORE: 3796 Bonus ------- None Cogmind --------- Core Integrity 0/550 Matter 300/300 Energy 99/100 System Corruption 0% Temperature Cool (0) Movement Core (150) Ox2 Location -8/Materials Parts ------- > --- POWER (2) -------- (None) > --- PROPULSION (4) --- (None) > --- UTILITY (3) ------ Small Storage Unit > --- WEAPON (2) ------- Advanced Beam Rifle > --- INVENTORY (8) ---- Advanced Beam Rifle Advanced Beam Rifle Peak State ------------ > --- POWER ------------ Light Deuterium Engine > --- PROPULSION ------- Combat Airjet Combat Airjet Combat Airjet > --- UTILITY ---------- Small Storage Unit Launcher Guidance Computer Launcher Guidance Computer > --- WEAPON ----------- Small Laser Beam Rifle > --- INVENTORY -------- Ion Engine Ion Engine Aluminum Leg Aluminum Leg Heat Sink Heat Sink Light Armor Plating [Rating: 30] Favorites ----------- Power Improved Ion Engine Engine Improved Ion Engine Propulsion Light Treads Treads Light Treads Leg Aluminum Leg Hover Unit Combat Airjet Flight Unit Flight Unit Utility Small Storage Unit Device Drone Bay Storage Small Storage Unit Processor Terrain Scan Processor Protection Light Armor Plating Weapon Hammer Energy Gun Beam Rifle Ballistic Gun Shotgun Ballistic Cannon Improved Light Cannon Launcher Missile Launcher Impact Weapon Hammer Build | -11 -10 -10 -9 -9 -8 ------- Run | Yrd Mat Min Mat Sto Mat Slots Evolved 4 | . . . 2 . 2 Power 1 | . . . . . 1 Propulsion 2 | . . . 1 . 1 Utility 1 | . . . 1 . . Weapon . | . . . . . . Parts Attached 46 | 6 . 4 8 13 15 Power 7 | 1 . . 2 1 3 Engine 7 | 1 . . 2 1 3 Core . | . . . . . . Reactor . | . . . . . . Propulsion 14 | 2 . 2 1 6 3 Treads 7 | . . . . 4 3 Leg 2 | 2 . . . . . Wheel . | . . . . . . Hover 3 | . . 2 1 . . Flight 2 | . . . . 2 . Utility 11 | 1 . 1 3 3 3 Device 4 | . . 1 . 2 1 Storage 2 | 1 . . . . 1 Processor 4 | . . . 3 . 1 Hackware . | . . . . . . Protection 1 | . . . . 1 . Artifact . | . . . . . . Weapon 14 | 2 . 1 2 3 6 Energy Gun 7 | 2 . . 1 . 4 Energy Cannon . | . . . . . . Ballistic Gun 3 | . . 1 1 1 . Ballistic Cannon 1 | . . . . 1 . Launcher 2 | . . . . . 2 Special Weapon . | . . . . . . Impact Weapon 1 | . . . . 1 . Slashing Weapon . | . . . . . . Piercing Weapon . | . . . . . . Special Melee Weapon . | . . . . . . Unidentified Prototypes 2 | . . . 1 . 1 Parts Lost 24 | . . 2 1 4 17 Power 4 | . . . . . 4 Propulsion 7 | . . . . 2 5 Utility 5 | . . 1 . 1 3 Weapon 8 | . . 1 1 1 5 Highest Loss Streak 14 | . . 2 1 2 14 To Critical Strikes . | . . . . . . Average Backups 7 | 3 6 7 6 7 7 Power 2 | . 1 1 2 2 1 Propulsion 1 | 2 4 3 1 . . Utility 1 | . . 1 1 2 1 Weapon 1 | . 1 . 1 1 3 Tool/Special . | . . . . . . Unused Backups 25 | . . 4 5 8 8 Power 6 | . . . 2 3 1 Propulsion 7 | . . 4 . 2 1 Utility 8 | . . . 3 2 3 Weapon 4 | . . . . 1 3 Tool/Special . | . . . . . . Average Slot Usage (%) 89 | . 85 90 94 87 90 Engine 13 | . 14 14 11 11 17 Treads 17 | . . . . 20 29 Leg 1 | . 28 8 . . . Hover 6 | . . 17 29 1 . Device 4 | . . 6 . 7 1 Storage 11 | . 14 14 11 11 9 Processor 12 | . . . 21 12 15 Energy Gun 8 | . 28 15 12 2 10 Ballistic Gun 5 | . . 12 9 5 . Ballistic Cannon 2 | . . . . 4 1 Impact Weapon 4 | . . . . 7 5 Peak Build Rating 30 | 6 6 20 30 26 22 Average Rating 17 | 4 6 14 28 15 19 On Entrance 10 | . 6 6 15 25 12 Avg Prop Armor Cover (%) 7 | . . . . . 7 Naked Turns . | . . . . . . Heaviest Build 32 | 13 13 17 19 25 32 Greatest Support 82 | 20 20 24 36 60 82 Greatest Overweight (x) 5 | 1 . 4 . 1 5 Average Overweight (x) . | . . . . . . Largest Inventory Capacity 8 | 8 8 8 8 8 8 Average Capacity 7 | 7 8 8 8 8 8 Most Carried 8 | 6 6 8 8 8 8 Average Carried 7 | 3 6 7 6 7 7 Final Capacity 8 | 8 8 8 8 8 8 Final Carried 8 | 6 6 7 8 8 2 Class Distribution -------------------- 51% | Mutant 48% | Scavenger-Mutant Dominant Class ---------------- Mutant | -10/Materials Mutant | -10/Mines Scavenger-Mutant | -9/Materials Mutant | -9/Storage Scavenger-Mutant | -8/Materials Resources | -11 -10 -10 -9 -9 -8 ----------- Run | Yrd Mat Min Mat Sto Mat Matter Collected 974 | 229 . 129 126 231 259 Remotely . | . . . . . . Salvage Created 1796 | . . 147 139 889 621 Parts 78 | . . 9 12 27 30 Haulers Intercepted . | . . . . . . Recyclers Shooed . | . . . . . . Parts Field Recycled . | . . . . . . Retrieved Matter . | . . . . . . Parts Self-Destructed . | . . . . . . Prevented . | . . . . . . Parts Restored . | . . . . . . Kills | -11 -10 -10 -9 -9 -8 ------- Run | Yrd Mat Min Mat Sto Mat Combat Hostiles Destroyed 37 | . . 4 5 15 13 Melee 8 | . . . . 6 2 Guns 14 | . . 4 5 2 3 AOE 6 | . . . . . 6 Classes Destroyed 9 | . . 3 2 4 . Worker 2 | . . . . 1 1 Recycler 4 | . . . . 2 2 Mechanic 1 | . . . . 1 . Watcher 2 | . . . . 1 1 Swarmer 5 | . . . 3 . 2 Grunt 19 | . . 2 . 10 7 Sentry 11 | . . . 2 5 4 Demolisher 1 | . . 1 . . . Assembled 1 | . . 1 . . . Best Kill Streak 7 | . . 1 3 4 7 Combat Bots Only 6 | . . 1 3 4 6 Max Kills in Single Turn 4 | . . 1 2 1 4 Gunslinging . | . . . . . . Exploded 3 | . . . . . 3 Melee 1 | . . . . 1 1 Uniques/NPCs Destroyed . | . . . . . . Combat | -11 -10 -10 -9 -9 -8 -------- Run | Yrd Mat Min Mat Sto Mat Hostile Shots Fired 333 | . . 19 42 114 158 Missed 88 | . . 5 15 26 42 Hits 245 | . . 14 27 88 116 Projectile 245 | . . 14 27 88 116 AOE 5 | . . 5 . . . Critical Strikes 9 | . . . 1 3 5 Damage Taken 3692 | . . 318 285 1163 1926 Core 926 | . . 48 59 257 562 Absorbed by Shields . | . . . . . . Regen/Repaired (Parts) 113 | . . . 76 37 . Core Remaining (%) 67 | 100 . 80 . 21 . Volleys Fired 76 | . . 16 17 17 26 Largest 2 | . . 2 2 2 2 Hottest 96 | . . 70 79 79 96 Shots Fired 122 | . . 30 32 22 38 Gun 113 | . . 30 32 21 30 Cannon 4 | . . . . 1 3 Launcher 5 | . . . . . 5 Special . | . . . . . . Kinetic 51 | . . 16 15 17 3 Thermal 66 | . . 14 17 5 30 Explosive 5 | . . . . . 5 Electromagnetic . | . . . . . . Robot Hit Streak 7 | . . 4 7 6 7 Robot Miss Streak 7 | . . 3 4 7 2 Penetration Max . | . . . . . . Secondary Targets . | . . . . . . Shots Hit Robots 120 | . . 17 16 47 40 Core Hits 54 | . . 7 8 12 27 Critical Kills 1 | . . . . . 1 Critical Parts Destroyed 11 | . . . . 11 . Critical Strikes 15 | . . . . 12 3 Burn 3 | . . . . 1 2 Destroy 1 | . . . . 1 . Smash 11 | . . . . 10 1 Melee Attacks 58 | . . . . 38 20 Impact 58 | . . . . 38 20 Slashing . | . . . . . . Piercing . | . . . . . . Sneak Attacks 5 | . . . . 5 . Combat Hostiles . | . . . . . . Follow-up Attacks . | . . . . . . Damage Inflicted 2994 | . . 217 232 1160 1385 Guns 957 | . . 217 232 208 300 Cannons 64 | . . . . . 64 Explosions 757 | . . . . . 757 Melee 1201 | . . . . 948 253 Ramming 15 | . . . . 4 11 Kinetic 503 | . . 132 128 179 64 Thermal 518 | . . 85 104 29 300 Explosive 757 | . . . . . 757 Electromagnetic . | . . . . . . Impact 1201 | . . . . 948 253 Slashing . | . . . . . . Piercing . | . . . . . . Highest Corruption . | . . . . . . Average Corruption . | . . . . . . Corruption Purged . | . . . . . . Corruption Blocked . | . . . . . . Overload Shots . | . . . . . . Overflow Damage 441 | . . . . 352 89 Projectiles . | . . . . . . Explosions 74 | . . . . . 74 Melee 367 | . . . . 352 15 Knockbacks 4 | . . . . 3 1 Impact 3 | . . . . 3 . Kinetic 1 | . . . . . 1 Secondary . | . . . . . . Self-Inflicted Damage 97 | . . . . . 97 Shots 4 | . . . . . 4 Rammed 1 | . . . . . 1 Targets Rammed 3 | . . . . 1 2 Kicked . | . . . . . . Crushed 2 | . . . . 1 1 Highest Temperature 163 | . . 58 106 99 163 Average Temperature 47 | . . 20 40 46 62 Received Heat Transfer 1491 | . . 63 84 579 765 Siege Activations . | . . . . . . Martial Activations . | . . . . . . Shielding Activations . | . . . . . . Robots Disrupted . | . . . . . . Combat Hostiles . | . . . . . . Robots Corrupted 11 | . . . . 9 2 Combat Hostiles 9 | . . . . 7 2 Parts Fried 16 | . . . . 15 1 Impact Corruptions 18 | . . . . 16 2 Robots Melted . | . . . . . . Combat Hostiles . | . . . . . . Parts Melted 4 | . . . . 2 2 Heat Transferred 1484 | . . 247 248 148 841 Parts Sabotaged . | . . . . . . Parts Stolen . | . . . . . . Parts Stripped . | . . . . . . Power Chain Reactions . | . . . . . . Alert | -11 -10 -10 -9 -9 -8 ------- Run | Yrd Mat Min Mat Sto Mat Maximum Alert Level . | . . . . . . Low Security (%) 100 | 100 100 100 100 100 100 Level 1 . | . . . . . . Level 2 . | . . . . . . Level 3 . | . . . . . . Level 4 . | . . . . . . Level 5 . | . . . . . . High Security . | . . . . . . Max Security . | . . . . . . Peak Influence 153 | . . 30 84 153 136 Initial 55 | . . . 3 22 55 Average 36 | . . 3 34 63 22 Influence Increases 1061 | . . 70 144 463 384 Destroy 0b10 Robot/C 720 | . . 60 100 300 260 Destroy 0b10 Robot/NC 45 | . . . . 25 20 Destroy Leader 174 | . . 10 30 82 52 Successful Hack 23 | . . . 14 9 . Disable Machine 15 | . . . . 15 . Destroy Structure 24 | . . . . 2 22 Partial Spotted 15 | . . . . 15 . Lose Combat Pursuer 45 | . . . . 15 30 Influence Decreases 1003 | . . 60 100 386 457 Entered New Map 115 | . . . 7 32 76 Time Decay 687 | . . 50 93 314 230 Lost Part 170 | . . 10 . 40 120 Purge Threat 31 | . . . . . 31 Squads Dispatched 5 | . . . 1 2 2 Investigation 3 | . . . 1 2 . Extermination . | . . . . . . Reinforcement 1 | . . . . . 1 Assault . | . . . . . . Garrison 1 | . . . . . 1 Intercept . | . . . . . . Searches Triggered . | . . . . . . Construction Impeded . | . . . . . . Haulers Reinforced . | . . . . . . Active Scanning Responses . | . . . . . . Cargo Convoy Interrupts . | . . . . . . Stealth | -11 -10 -10 -9 -9 -8 --------- Run | Yrd Mat Min Mat Sto Mat Distress Signals 4 | . . 1 1 . 2 Communications Jammed . | . . . . . . Distress Signals . | . . . . . . Times Spotted 60 | . . 9 8 18 25 Peak Tracking Total 12 | . . 9 7 4 12 Tactical Retreats 3 | . . . . 1 2 Traps | -11 -10 -10 -9 -9 -8 ------- Run | Yrd Mat Min Mat Sto Mat Traps Triggered 1 | . . . . 1 . Indirectly . | . . . . . . Trap Hack Attempts . | . . . . . . Triggered . | . . . . . . Disarmed . | . . . . . . Reprogrammed . | . . . . . . Reused . | . . . . . . Traps Extracted . | . . . . . . Installed . | . . . . . . Triggered . | . . . . . . Machines | -11 -10 -10 -9 -9 -8 ---------- Run | Yrd Mat Min Mat Sto Mat Machines Disabled 1 | . . . . 1 . Max in Single Turn 1 | . . . . 1 . Garrison Access 1 | . . . . 1 . Machines Repaired . | . . . . . . Machines Dismantled . | . . . . . . Machines Sabotaged . | . . . . . . Overloaded Fab Kills . | . . . . . . Hacking | -11 -10 -10 -9 -9 -8 --------- Run | Yrd Mat Min Mat Sto Mat Machines Accessed 10 | . . . 2 6 2 Terminals 6 | . . . 1 4 1 Fabricators . | . . . . . . Repair Stations 2 | . . . 1 1 . Recycling Units 1 | . . . . . 1 Scanalyzers . | . . . . . . Garrison Access 1 | . . . . 1 . Total Hacks 41 | . . . 7 24 10 Successful 20 | . . . 6 11 3 Failed 21 | . . . 1 13 7 Catastrophic 3 | . . . . 1 2 Database Lockouts . | . . . . . . Manual 1 | . . . . 1 . Terminals 24 | . . . 4 15 5 Fabricators . | . . . . . . Repair Stations 11 | . . . 3 8 . Recycling Units 5 | . . . . . 5 Scanalyzers . | . . . . . . Garrison Access 1 | . . . . 1 . Terminal Hacks 11 | . . . 3 6 2 Prototype ID Bank 2 | . . . 1 1 . Open Door 1 | . . . . 1 . Emergency Access Points 2 | . . . 1 . 1 Unreport Threat 1 | . . . . . 1 Locate Traps 1 | . . . . 1 . Maintenance Status 1 | . . . . 1 . Patrol Status 1 | . . . . 1 . Transport Status 1 | . . . 1 . . Investigation Status 1 | . . . . 1 . Fabricator Hacks . | . . . . . . Repair Station Hacks 7 | . . . 3 4 . Scan Component 4 | . . . 2 2 . Repair 3 | . . . 1 2 . Recycling Unit Hacks 1 | . . . . . 1 Retrieve Components 1 | . . . . . 1 Scanalyzer . | . . . . . . Garrison Access Hacks 1 | . . . . 1 . Seal Access 1 | . . . . 1 . Unauthorized Hacks . | . . . . . . Terminals . | . . . . . . Fabricators . | . . . . . . Repair Stations . | . . . . . . Recycling Units . | . . . . . . Scanalyzers . | . . . . . . Garrison Access . | . . . . . . Data Cores Recovered . | . . . . . . Used . | . . . . . . Hacking Detections 8 | . . . 2 5 1 Full Trace Events 5 | . . . 1 3 1 Feedback Events . | . . . . . . Feedback Blocked . | . . . . . . Robot Schematics Acquired . | . . . . . . Robots Built . | . . . . . . Authchips . | . . . . . . Time . | . . . . . . Total Robot Build Rating . | . . . . . . Part Schematics Acquired . | . . . . . . Parts Built . | . . . . . . Authchips . | . . . . . . Time . | . . . . . . Total Part Build Rating . | . . . . . . Part Studies Acquired . | . . . . . . Parts Repaired 3 | . . . 1 2 . Time 150 | . . . 50 100 . Parts Recycled . | . . . . . . Recycled Matter . | . . . . . . Retrieved Matter . | . . . . . . Retrieved Components 9 | . . . . . 9 Parts Scanalyzed . | . . . . . . Part Schematics Acquired . | . . . . . . Parts Damaged . | . . . . . . Bothacking | -11 -10 -10 -9 -9 -8 ------------ Run | Yrd Mat Min Mat Sto Mat Used RIF Installer . | . . . . . . Robots Hacked . | . . . . . . Non-combat . | . . . . . . Combat . | . . . . . . Robot Hacks Applied . | . . . . . . Relay Couplers Released . | . . . . . . Fabnet Peak Effective % . | . . . . . . Robots Rewired . | . . . . . . Allies Hacked . | . . . . . . Hacks Repelled . | . . . . . . Allies | -11 -10 -10 -9 -9 -8 -------- Run | Yrd Mat Min Mat Sto Mat Total Allies . | . . . . . . Largest Group . | . . . . . . Highest-Rated Group . | . . . . . . Highest-Rated Ally . | . . . . . . Total Orders . | . . . . . . Ally Attacks . | . . . . . . Total Damage . | . . . . . . Kills . | . . . . . . Allies Corrupted . | . . . . . . Allies Melted . | . . . . . . Intel | -11 -10 -10 -9 -9 -8 ------- Run | Yrd Mat Min Mat Sto Mat Active Infowar (turns) . | . . . . . . Robot Analysis Total . | . . . . . . Derelict Logs Recovered 2 | . . 2 . . . Drone Launches 5 | . . . . 2 3 Drone Recoveries 4 | . . . . 2 2 Exploration | -11 -10 -10 -9 -9 -8 ------------- Run | Yrd Mat Min Mat Sto Mat Turns Passed 2446 | 91 33 376 276 1020 650 Spaces Moved 1573 | 70 28 356 262 558 299 Core 27 | 16 . 7 . . 4 Treads 745 | . . . . 450 295 Legs 145 | 54 28 63 . . . Wheels . | . . . . . . Hover 602 | . . 286 262 54 . Flight 54 | . . . . 54 . Fastest Speed 50 | 50 120 77 74 77 150 Average Speed 122 | 109 120 88 75 147 159 Slowest Speed 300 | 120 120 250 77 160 300 Overloaded Moves . | . . . . . . Propulsion Burnouts . | . . . . . . Robots Hopped . | . . . . . . Potential Cave-ins . | . . . . . . Cave-ins Triggered . | . . . . . . Exploration Rate (%) 28 | 3 7 67 21 50 24 Regions Visited 5 Branch Regions 2 Pre-discovered Areas . | . . . . . . Known Exits Taken 1 | . . . 1 . . Unknown Exits Taken 4 | 1 1 1 . 1 . Scrap Searched . | . . . . . . Spaces Dug . | . . . . . . Terrain Destroyed 22 | . . . . 1 21 Melee . | . . . . . . Projectile 1 | . . . . 1 . AOE 21 | . . . . . 21 Terrain Rammed . | . . . . . . Walls Destroyed . | . . . . . . Machines Disabled . | . . . . . . Actions | -11 -10 -10 -9 -9 -8 --------- Run | Yrd Mat Min Mat Sto Mat Total 1879 | 81 27 389 311 668 403 Wait 14 | . . . . 5 9 Move 1568 | 69 27 355 261 557 299 Hop . | . . . . . . Pick Up 60 | 6 . 6 15 18 15 Fast Attach 13 | 6 . 1 1 2 3 Attach 23 | . . 3 3 7 10 Detach 4 | . . 2 . 2 . Swap 17 | . . 2 4 7 4 Drop 40 | . . 4 10 14 12 Fire 76 | . . 16 17 17 26 Melee 58 | . . . . 38 20 Ram . | . . . . . . Kick . | . . . . . . Crush 3 | . . . . 1 2 Escape Stasis . | . . . . . . Rewire 3 | . . . . . 3 Trap . | . . . . . . Miscellaneous . | . . . . . . Route ------- -11/Scrapyard -10/Materials -10/Mines -9/Materials (discovered 2 exits: [*Min] / *Sto) -9/Storage -8/Materials History --------- Turn | Location | Event 5 | -11/Scrapyard | Discovered new exit (range 14) 92 | -11/Scrapyard | Entered Materials 107 | -10/Materials | Discovered new exit (range 15) 125 | -10/Materials | Entered Mines 128 | -10/Mines | Assembled infested the area 314 | -10/Mines | Build established: Mutant 360 | -10/Mines | Learned Materials stockpile data 494 | -10/Mines | Discovered new exit (range 6) 501 | -10/Mines | Entered Materials 501 | -9/Materials | Evolved 2 slots: Propulsion x1, Utility x1 502 | -9/Materials | Identified exit to Storage 522 | -9/Materials | Discovered new exit (range 10) 749 | -9/Materials | Repaired Cmb. Airjet? 777 | -9/Materials | Entered Storage 821 | -9/Storage | Repaired Cmb. Airjet 844 | -9/Storage | Build established: Scavenger-Mutant 871 | -9/Storage | Repaired Cmb. Airjet? 1168 | -9/Storage | Build established: Mutant 1628 | -9/Storage | Core integrity fell below 50% 1786 | -9/Storage | Discovered new exit (range 7) 1797 | -9/Storage | Entered Materials 1797 | -8/Materials | Evolved 2 slots: Power x1, Propulsion x1 2168 | -8/Materials | Build established: Scavenger-Mutant 2427 | -8/Materials | Garrison activated, responded to threat 2430 | -8/Materials | Core integrity fell below 50% 2436 | -8/Materials | Core integrity fell below 20% 2447 | -8/Materials | Destroyed by Y-45 Defender with Heavy Assault Rifle Last Messages --------------- 02429_ Lgt. Treads destroyed. 02429_ Critical hit (Burn: +37). 02430_ S-10 Pest suffers critical hit (Burn). 02430_ S-10 Pest destroyed. 02430_ G-47 Trooper destroyed. 02431_ Imp. Targeting Computer destroyed. 02432_ The unstable cave ceiling collapses. 02433_ Rocket Launcher destroyed. 02435_ Lgt. Deuterium Engine destroyed. 02437_ Missile Launcher destroyed. 02437_ Critical hit (Blast). 02440_ The unstable cave ceiling collapses. 02441_ Imp. Ion Engine destroyed. 02441_ Hammer destroyed. 02441_ Com. Matter Pod destroyed. 02441_ Knocked back. 02443_ The unstable cave ceiling collapses. 02443_ Recycling Unit disabled. 02445_ The unstable cave ceiling collapses. 02445_ Aluminum Leg crushed. Map ----- +----------------------------------------------------+ | ?????????????????????????+??????????????????? | | ????????????????????????????????????????????? | | ????????????????????????????????????????????? | | ????????????????????????????????????????????? | | ??????????????????????????????# #???????????? | | ?????????????????????????? ?? #??????????? | | ?????????????????????????? ?? ??????????? | | ????????????????????????"" ?? ??????????? | | ????????????????????????"" #? ???????????? | | ???????????????????????? #? "???????????? | | ???????????????????????### ## H#???????????? | | ??????????????????####### ## +???????????? | | ??????????????????? #???????????? | | ????????????????????? Y #???????????? | | ?????????????????????? "#???????????? | | ??????????????????????# =Y"#???????????? | | ????????????????####### # g% ""######??????? | | ????????????????# #??????? | | ????????????# # * * +??????? | | ????????????+ / [ #### #??????? | | ????????????????# = #+#### #??????? | | ??????????????????###### ## +??????? | | ???????????????????????## #%T ## #??????? | | ????????????????????????# # ## ##?????? | | ????????????????????????# #! ! # #?????? | | ????????????????????????#@ # + #?????? | | ????????????????????????# # """ # #?????? | | ????????????????????????# # """ # #?????? | | ????????????????????????# # """ ## ##?????? | | ????????????????????????# # ## #??????? | | ????????????????????????#a ######## #??????? | | ????????????????????????r ??????# #??????? | | ???????????????????????? ????### ###????? | | ???????????????????????? ????# !%[ #????? | | ????????????????????????#####???# = #????? | | ????????????????????????????????# #????? | | ????????????????????????????????# #????? | | ????????????????????????????????# #????? | | ????????????????????????????????# #????? | | ????????????????????????????????### ####????? | | ??????????????????????????????????# #???????? | | ??????????????????????????????????# #???????? | | ??????????????????????????????????# #???????? | | ??????????????????????????????????# #???????? | | ??????????????????????????????????#%#???????? | | ??????????????????????????#########+#???????? | | ??????????????????????????# T ##??????? | | ??????????????????????????# #??????? | | ??????????????????????????# """ """ ##??????? | | ??????????????????????????# """ """ #???????? | +----------------------------------------------------+ Best States ------------- Heat Dissipation 31 Energy Generation 19 Energy Capacity 430 Matter Stores 359 Matter Capacity 450 Sight Range 16 Terrain Scan Density 85 Additional Mass Support 6 Armor Coverage 150 Resistance: EX 25 Evasion (%) 55 Targeting Accuracy 6 Launcher Accuracy 40 Recoil Reduction 4 Item Schematics ----------------- None Robot Schematics ------------------ None Fabricated ------------ Nothing Repaired ---------- Cmb. Airjet | 41% | -9/Materials Cmb. Airjet | 71% | -9/Storage Studied --------- None Alien Tech Used ----------------- None Achievements -------------- Everything Is Under Control I Survived The Infestation Storm Trooper Throw Away The Key Challenges ------------ None Game ------ Seed CooledDefenseWand Manual? 0 Play Time 00:31:21 Cumulative 5.9 hours Start 2025.12.13 @ 22:16:33 End 2025.12.14 @ 00:31:00 Sessions 4 Manual Loads 0 Difficulty Rogue Special Mode None Game No. 12 Rogue 12 Adventurer 0 Explorer 0 Win Type - Total 0 Types 0/0/0/0/0/0/0/0/0/0 Lore% 7 Gallery% 9 Achievement% 11 Wizard Run 0 Options --------- Layout 1 ASCII 0 Keyboard 0 Movement Arrows Keybinds 0 Fullscreen 2 Font 24/Terminus Map View 76x35 Zoom Use 0% Tactical HUD 1 Map Filters NONE Filters NONE Steam 1 RUN: eac69914-a84b-4e78-b56d-1abaa0a420e4